[Event "ChessKid Cup Div-III 2023"]
[Site "Online"]
[Date "2023.05.22"]
[Round "1.1"]
[White "Yu, Yangyi"]
[Black "Donchenko, Alexander"]
[Result "1-0"]
[ECO "B91"]
[WhiteElo "2729"]
[BlackElo "2669"]
[Annotator "TA"]
[PlyCount "61"]
[EventDate "2023.05.21"]
[EventType "k.o."]
[EventCountry "NET"]
[SourceTitle "playchess.com"]
[Source "ChessBase"]
[SourceQuality "1"]
[TimeControl "900+3"]

{[%evp 19,61,5,16,5,2,14,27,13,67,65,63,56,72,68,52,55,113,106,108,100,106,108,128,138,149,141,144,141,167,176,169,141,400,404,392,377,611,603,611,600,595,596,588,587]} 1. e4 {[%emt 0:00:04]} c5 {[%emt 0:00:05]} 2. Nf3 {[%emt 0:00:01][%cal Bg1f3,Bf3d4,Bd4b3,Bb3d2,Bd2f1][%mdl 32]} d6 {[%emt 0:00:01]} 3. d4 {[%emt 0:00:02]} cxd4 {[%emt 0:00:01]} 4. Nxd4 {[%emt 0:00:00]} Nf6 {[%emt 0:00:01]} 5. Nc3 {[%emt 0:00:01]} a6 {[%emt 0:00:00]} 6. g3 {[%emt 0:00:01]} e5 {[%emt 0:00:22]} 7. Nb3 {[%emt 0:00:02]} Be7 {[%emt 0:00:20]} 8. Bg2 {[%emt 0:00:01]} O-O {[%emt 0:00:47]} 9. O-O {[%emt 0:00:02]} Be6 {[%emt 0:01:05]} 10. a4 {[%emt 0:00:03]} Nbd7 {[%emt 0:00:23]} 11. Re1 {[%emt 0:00:03] B91: Sicilian Najdorf: 6 g3.} Rc8 {[%emt 0:00:15] 11...Qc7 gains popularity.} 12. Nd2 {[%emt 0:00:10]} Nb6 {[%emt 0:01:26]} 13. Nf1 {[%emt 0:00:41] White has an edge.} Nc4 {[%emt 0:00:31]} (13... Rc5 $11) 14. b3 $14 {[%emt 0:00:19]} Nb6 {[%emt 0:00:40]} 15. Bb2 {[%emt 0:00:06] [#]} d5 $146 {[%emt 0:01:15]} ({Predecessor:} 15... Rc7 16. Ne3 Qc8 17. Qd2 Rd8 18. a5 Na8 19. f4 Bf8 20. f5 Bd7 21. g4 Bc6 {1-0 Istratescu,A (2573)-Aaryan,V (2261) Abu Dhabi op 25th 2018 (1)}) 16. Nxd5 {[%emt 0:01:11]} Nbxd5 {[%emt 0:00:30]} 17. exd5 {[%emt 0:00:00]} Bxd5 {[%emt 0:00:00]} (17... Nxd5 $14 18. c4 (18. Bxe5 Nb4 $14) 18... Nb4) 18. Bxd5 $16 {[%emt 0:02:43]} ({Resist} 18. Rxe5 Bxg2 19. Kxg2 Qxd1 20. Rxd1 Rxc2 $14) 18... Qxd5 {[%emt 0:00:02]} 19. c4 {[%emt 0:02:09]} ({But not} 19. Bxe5 Qxd1 20. Raxd1 Rxc2 $14) 19... Qxd1 {[%emt 0:00:33]} 20. Raxd1 {[%emt 0:00:00]} Rfe8 {[%emt 0:01:28]} 21. Rxe5 {[%emt 0:00:38]} ({Worse is} 21. Bxe5 Bb4 22. Re3 Ng4 $15) 21... Ng4 {[%emt 0:00:06]} 22. Red5 {[%emt 0:00:11]} g6 {[%emt 0:00:54]} 23. Kg2 {[%emt 0:00:29]} h5 {[%emt 0:01:06]} 24. h3 {[%emt 0:00:09]} Nf6 {[%emt 0:00:04]} 25. Re5 {[%emt 0:00:03][%cal Oe5e7] Hoping for Rxe7!} Bc5 {[%emt 0:00:43][%mdl 8192] [#] This costs Black the game.} (25... Kf8 $16 26. Bd4 Rc6) 26. Rxc5 $1 $18 {[%emt 0:00:20][%mdl 576] Discovered Attack} Rxc5 {[%emt 0:00:04]} 27. Bxf6 {[%emt 0:00:01]} b5 $2 {[%emt 0:00:04]} (27... Rc6 28. Bd4 f6) 28. Bd4 {[%emt 0:00:39] White is clearly winning.} Rc6 {[%emt 0:00:24]} 29. axb5 {[%emt 0:00:14]} axb5 {[%emt 0:00:01]} 30. cxb5 {[%emt 0:00:07]} Rd6 {[%emt 0:00:01]} 31. Rd2 {[%emt 0:00:03] Weighted Error Value: White=0.04 (flawless) /Black=0.39} 1-0

[Event "ChessKid Cup Div-III 2023"]
[Site "Online"]
[Date "2023.05.22"]
[Round "1.1"]
[White "Vallejo Pons, Francisco"]
[Black "Raja Harshit"]
[Result "1-0"]
[ECO "A11"]
[WhiteElo "2712"]
[BlackElo "2515"]
[Annotator "TA"]
[PlyCount "57"]
[EventDate "2023.05.21"]
[EventType "k.o."]
[EventCountry "NET"]
[SourceTitle "playchess.com"]
[Source "ChessBase"]
[SourceQuality "1"]
[TimeControl "900+3"]

{[%evp 21,57,15,25,5,20,22,24,22,34,23,60,56,97,40,63,20,31,25,189,91,76,106,296,243,260,252,252,243,542,542,542,541,534,533,1005,958,1990,1930]} 1. Nf3 {[%emt 0:00:04]} Nf6 {[%emt 0:00:11]} 2. g3 {[%emt 0:00:05]} d5 {[%emt 0:00:05]} 3. Bg2 {[%emt 0:00:01]} g6 {[%emt 0:00:01]} 4. c4 {[%emt 0:00:11]} c6 {[%emt 0:00:26]} 5. b3 {[%emt 0:00:02]} Bg7 {[%emt 0:00:02]} 6. Bb2 {[%emt 0:00:01]} O-O {[%emt 0:00:02]} 7. O-O {[%emt 0:00:01]} Bg4 {[%emt 0:00:14]} 8. d3 {[%emt 0:00:17]} Nbd7 {[%emt 0:00:19]} 9. Nbd2 {[%emt 0:00:09]} Re8 {[%emt 0:00:36]} 10. h3 {[%emt 0:00:22]} Bxf3 {[%emt 0:00:23]} 11. Bxf3 {[%emt 0:00:50]} e6 {[%emt 0:00:13]} 12. Bg2 {[%emt 0:00:16] [#] A11: English Opening: 1...c6.} a5 $146 {[%emt 0:00:19]} ({Predecessor:} 12... h5 13. h4 Ng4 14. Bxg7 Kxg7 15. e3 Qf6 16. d4 Rad8 17. Rc1 Qe7 18. Qc2 Ndf6 19. Qc3 e5 20. dxe5 Qxe5 21. Qxe5 Nxe5 22. cxd5 Nxd5 {½-½ Karlsson,L (2480)-Wessman,R (2445) SWE-ch Borlange 1992 (2)}) 13. a3 {[%emt 0:00:07]} Qb6 {[%emt 0:00:14]} 14. e3 {[%emt 0:00:48] White has an edge.} Nh5 {[%emt 0:01:07]} 15. d4 {[%emt 0:00:08]} Rad8 {[%emt 0:02:18]} 16. Qc2 {[%emt 0:02:13]} c5 {[%emt 0:00:24]} 17. cxd5 {[%emt 0:00:53]} (17. dxc5 $16 Qxc5 18. Rac1) 17... exd5 $14 {[%emt 0:00:50][%cal Rc5d4]} 18. Bxd5 {[%emt 0:01:37] Threatening Rfe1.} (18. dxc5 {simplifies} Qxc5 19. Rfc1 Qxc2 20. Rxc2 Bxb2 21. Rxb2 Nhf6 22. b4) 18... cxd4 {[%emt 0:00:42]} 19. exd4 {[%emt 0:00:23] White wants to play Qc4.} Bxd4 $2 {[%emt 0:01:43]} (19... Nf8 $1 $11 20. Nc4 Qc7) 20. Nc4 {[%emt 0:00:07]} (20. Bxf7+ $1 $18 {has better winning chances.} Kxf7 21. Qc4+ Qe6 22. Bxd4) 20... Qc5 $16 {[%emt 0:00:18] White must now prevent ...Bxb2.} 21. Bxd4 {[%emt 0:00:08]} Qxd4 {[%emt 0:01:06]} (21... Qxd5 $16 {keeps fighting.} 22. Rad1 Qe6) 22. Rad1 $18 {[%emt 0:00:10]} (22. Bxb7 Nxg3 23. Rad1 Qc5 $11) 22... Qc5 {[%emt 0:00:54] [#]} 23. b4 $1 {[%emt 0:00:15]} (23. Bxb7 Nxg3 24. b4 axb4 25. axb4 Qa7 $11) 23... axb4 {[%emt 0:00:02]} 24. axb4 {[%emt 0:00:00]} Qxb4 {[%emt 0:00:01] [#]} (24... Qf8 25. Nd6 (25. Bxb7 Qxb4 26. Bc6 Nhf6 $11) 25... Re7 26. Nxb7 (26. Bxb7 Ndf6 $16) 26... Rc8) 25. Bxf7+ $1 {[%emt 0:00:54][%mdl 576] Decoy. White is clearly winning.} Kxf7 {[%emt 0:00:05]} 26. Nd6+ {[%emt 0:00:01]} Kf8 {[%emt 0:00:59] Strongly threatening ...Re6.} 27. Nxe8 {[%emt 0:00:06]} Kxe8 {[%emt 0:00:28]} 28. Rfe1+ {[%emt 0:00:08]} Kf7 {[%emt 0:00:26]} 29. Qc7 $1 {[%emt 0:00:13][%csl LRd7,LRd8][%mdl 64] Deflection, Double Attack.   Weighted Error Value: White=0.12 (very precise) /Black=0.71} ({Inferior is} 29. Qe2 Nhf6 $11) 1-0

[Event "ChessKid Cup Div-III 2023"]
[Site "Online"]
[Date "2023.05.22"]
[Round "1.1"]
[White "Keymer, Vincent"]
[Black "Tang, Andrew"]
[Result "1/2-1/2"]
[ECO "D31"]
[WhiteElo "2700"]
[BlackElo "2523"]
[Annotator "TA"]
[PlyCount "142"]
[EventDate "2023.05.21"]
[EventType "k.o."]
[EventCountry "NET"]
[SourceTitle "playchess.com"]
[Source "ChessBase"]
[SourceQuality "1"]
[TimeControl "900+3"]

{[%evp 13,142,11,12,0,19,23,42,38,42,-33,-33,-34,-34,-85,-80,-84,-69,-87,-81,-76,-29,-10,-19,-99,-106,-108,-97,-104,-89,-83,-87,-75,-86,-105,-101,-104,-99,-105,-95,-102,-90,-94,-101,-127,-124,-124,-117,-115,-108,-113,-75,-66,-15,-16,0,0,0,0,0,0,0,0,0,0,0,0,0,0,8,8,8,4,7,-8,-8,-8,-8,-9,0,0,0,-8,-8,-8,-8,-8,-8,-8,0,0,0,0,8,8,8,8,18,18,18,8,20,20,23,23,23,17,17,12,12,12,12,12,17,17,17,16,16,16,10,10,10,10,8,8,8,8,8,8,8,8,8]} 1. d4 {[%emt 0:00:04]} d5 {[%emt 0:00:05]} 2. c4 {[%emt 0:00:02]} e6 {[%emt 0:00:00]} 3. Nc3 {[%emt 0:00:00]} Be7 {[%emt 0:00:02]} 4. cxd5 {[%emt 0:00:02]} exd5 {[%emt 0:00:00]} 5. Bf4 {[%emt 0:00:01]} c6 {[%emt 0:00:01]} 6. e3 {[%emt 0:00:00]} Bf5 {[%emt 0:00:02]} 7. Nge2 {[%emt 0:00:12][%cal Bg1e2,Be2g3,Bg3h5][%mdl 32]} Nd7 {[%emt 0:00:05]} 8. h4 {[%emt 0:00:01] [#] D31: Queen's Gambit Declined: Semi-Slav without ...Nf6 (+ Marshall Gambit and Noteboom) and Exchange Variation lines without ...Nf6.} Nb6 $146 {[%emt 0:02:08]} ({Predecessor:} 8... Bxh4 9. Qb3 b6 10. Nxd5 cxd5 11. Rxh4 Qxh4 12. Qxd5 Rc8 13. Qxf5 Ngf6 14. Nc3 O-O 15. Bg3 Qh1 {1-0 Xu,Y (2558)-Rustemov,A (2525) Chessable Masters Play In rapid 2023 (4)}) 9. Ng3 {[%emt 0:00:29]} Be6 {[%emt 0:00:02]} 10. Nh5 {[%emt 0:00:51] White is slightly better.} Kf8 {[%emt 0:01:03]} 11. Bd3 {[%emt 0:02:05]} (11. Bg3 $14) 11... g6 $1 $15 {[%emt 0:01:28][%cal Bg7g6,Bg6g5][%mdl 32]} 12. Ng3 {[%emt 0:01:23]} Bxh4 {[%emt 0:00:06]} 13. Qf3 {[%emt 0:01:09]} (13. Qc2 $15) 13... Bf6 {[%emt 0:05:00]} (13... Kg7 {is more complex.} 14. e4 h5 15. e5 Nc4) 14. O-O-O {[%emt 0:01:56]} h5 $36 {[%emt 0:01:18][%mdl 2048] Black has the initiative.} 15. Nge2 {[%emt 0:00:34]} g5 {[%emt 0:00:57]} (15... Bg4 $6 16. Qg3 $11) 16. Be5 {[%emt 0:01:25]} Nd7 {[%emt 0:01:44]} (16... h4 $17 17. Bf5 Qd7 18. Bxe6 Qxe6) 17. Bd6+ $11 {[%emt 0:01:26]} (17. Rxh5 $2 {loses.} g4 $19) 17... Be7 {[%emt 0:00:04]} 18. Qg3 {[%emt 0:00:46]} (18. Rxh5 $2 {is the wrong capture.} g4 19. Bxe7+ (19. Rxh8 $2 {too greedy.} gxf3 20. Bxe7+ Qxe7 $19) 19... Qxe7 20. Rxh8 gxf3 $19) (18. Bxe7+ $11 Qxe7 19. Rde1 (19. Rxh5 $2 g4 $19)) 18... h4 $17 {[%emt 0:00:15]} 19. Bxe7+ {[%emt 0:00:22]} Qxe7 {[%emt 0:00:04]} 20. Qc7 {[%emt 0:00:03]} Ndf6 {[%emt 0:00:26][%cal Bd7f6,Bf6g4,Bg4e3,Be3d1][%mdl 32]} 21. Qe5 {[%emt 0:00:02]} Rh5 {[%emt 0:00:01]} 22. f3 {[%emt 0:00:31] Inhibits Ng4.} Re8 {[%emt 0:00:19]} 23. g4 {[%emt 0:00:57] [#]} Bxg4 {[%emt 0:00:04][%mdl 512]} 24. Qxe7+ {[%emt 0:00:30]} Rxe7 {[%emt 0:00:08]} 25. fxg4 {[%emt 0:00:02]} Nxg4 {[%emt 0:00:00] Strongly threatening ...Nf2.} 26. Ng3 {[%emt 0:00:07]} Rh8 {[%emt 0:00:25]} 27. Nf5 {[%emt 0:00:03] Prevents N8h6} Nxe3 {[%emt 0:00:18]} 28. Nxe7 {[%emt 0:00:28] Rde1 would be deadly.} Nxd1 {[%emt 0:00:01]} 29. Ng6+ {[%emt 0:00:20]} fxg6 {[%emt 0:00:01]} 30. Nxd1 {[%emt 0:00:01]} Kg7 {[%emt 0:00:02] White must now prevent ...g4.} 31. Nf2 {[%emt 0:00:13]} Nf6 {[%emt 0:00:02]} 32. Rg1 {[%emt 0:00:01]} h3 {[%emt 0:00:12]} (32... Rh5 $15 33. Be2 g4 34. Bxg4 Nxg4 35. Rxg4 h3) 33. Rxg5 $11 {[%emt 0:00:08]} h2 {[%emt 0:00:00][%cal Of6e4]} 34. Rxg6+ {[%emt 0:00:18]} Kf7 {[%emt 0:00:01]} 35. Nh1 $1 {[%emt 0:00:00]} Rh3 {[%emt 0:00:02]} 36. Rg3 {[%emt 0:00:07]} Rxg3 {[%emt 0:00:07]} 37. Nxg3 {[%emt 0:00:01]} Nh5 {[%emt 0:00:10][%mdl 64] [#] Decoy, Promotion} 38. Nh1 {[%emt 0:00:01]} Kf6 {[%emt 0:00:03] Threatens to win with ...Kg5.} 39. Kd2 {[%emt 0:00:01]} Kg5 {[%emt 0:00:03]} 40. Ke3 {[%emt 0:00:01]} Ng7 {[%emt 0:00:07]} 41. Kf3 {[%emt 0:00:17]} Ne6 {[%emt 0:00:03]} (41... a5 {feels hotter.} 42. Nf2 Ne6 43. Kg3 Nxd4 44. Nh3+ Kf6) 42. Kg3 {[%emt 0:00:04]} (42. Nf2 {keeps more tension.} Nxd4+ 43. Kg3 c5 44. Nh3+) 42... Nxd4 {[%emt 0:00:02]} (42... Nf4 {looks sharper.} 43. Bf1 Ne6 44. Nf2 Nxd4 45. Bd3 c5) 43. Kxh2 {[%emt 0:00:00]} Kf4 {[%emt 0:00:00]} 44. Kg2 {[%emt 0:00:04]} Ke3 {[%emt 0:00:04]} 45. Bg6 {[%emt 0:00:00]} Kd2 {[%emt 0:00:01]} 46. Nf2 {[%emt 0:00:02]} Ne2 {[%emt 0:00:07] Hoping for ...Nf4+.} 47. Bf5 {[%emt 0:00:06]} b6 {[%emt 0:00:02]} 48. Bc8 {[%emt 0:00:07]} c5 {[%emt 0:00:02]} 49. Kf3 {[%emt 0:00:00]} Nc1 {[%emt 0:00:02]} 50. Be6 {[%emt 0:00:04]} d4 {[%emt 0:00:03][%cal Bd5d4,Bd4d3][%mdl 32]} 51. a3 {[%emt 0:00:03]} Kc2 {[%emt 0:00:00]} 52. b4 {[%emt 0:00:01]} d3 {[%emt 0:00:04]} 53. bxc5 {[%emt 0:00:05]} bxc5 {[%emt 0:00:00]} 54. Ke3 {[%emt 0:00:00]} d2 {[%emt 0:00:02]} 55. Bf5+ {[%emt 0:00:02]} Kc3 {[%emt 0:00:06]} 56. Ne4+ {[%emt 0:00:02]} Kb3 {[%emt 0:00:03]} 57. Kxd2 {[%emt 0:00:01]} Na2 {[%emt 0:00:04]} 58. Nxc5+ {[%emt 0:00:06]} Kxa3 {[%emt 0:00:01]} 59. Kd3 {[%emt 0:00:01]} Kb4 {[%emt 0:00:03] The position is equal.} 60. Ne4 {[%emt 0:00:02]} Nc1+ {[%emt 0:00:02]} 61. Kc2 {[%emt 0:00:03]} Nb3 {[%emt 0:00:02]} 62. Kb2 {[%emt 0:00:01]} a5 {[%emt 0:00:02]} 63. Nc3 {[%emt 0:00:04] Na2+ is the strong threat.} a4 {[%emt 0:00:02]} 64. Nd5+ {[%emt 0:00:00]} Kc5 {[%emt 0:00:00]} 65. Ne3 {[%emt 0:00:01]} Nd4 {[%emt 0:00:03]} 66. Be4 {[%emt 0:00:01]} Kb4 {[%emt 0:00:02]} 67. Nd5+ {[%emt 0:00:01]} Kc5 {[%emt 0:00:01]} 68. Ka3 {[%emt 0:00:01]} Nb5+ {[%emt 0:00:15]} 69. Kxa4 {[%emt 0:00:01]} Kd4 {[%emt 0:00:02]} 70. Bh1 {[%emt 0:00:07]} Nc3+ {[%emt 0:00:01]} 71. Nxc3 {[%emt 0:00:00]} Kxc3 {[%emt 0:00:00] Weighted Error Value: White=0.09 (flawless) /Black=0.06 (flawless)} 1/2-1/2

[Event "ChessKid Cup Div-III 2023"]
[Site "Online"]
[Date "2023.05.22"]
[Round "1.1"]
[White "Navara, David"]
[Black "Bok, Benjamin"]
[Result "0-1"]
[ECO "D02"]
[WhiteElo "2678"]
[BlackElo "2607"]
[Annotator "TA"]
[PlyCount "90"]
[EventDate "2023.05.21"]
[EventType "k.o."]
[EventCountry "NET"]
[SourceTitle "playchess.com"]
[Source "ChessBase"]
[SourceQuality "1"]
[TimeControl "900+3"]

{[%evp 15,90,-2,0,-13,-17,-18,-20,-20,-6,-4,-15,-8,-6,-17,-16,-16,-7,-15,-8,-11,-13,-30,-31,-32,-29,-21,-25,-26,0,0,0,0,0,-8,-8,-8,-8,-8,-8,-227,-200,-977,-959,-992,-992,-922,-902,-868,-862,-862,-862,-1950,-1885,-2369,-2316,-5495,-6062,-5605,-5401,-6087,-6062,-29982,-29983,-29983,-29984,-29984,-29985,-29986,-29986,-29988,-29989,-29990,-29991,-29991,-29992,-29992,-29993]} 1. d4 {[%emt 0:00:04]} Nf6 {[%emt 0:00:07]} 2. Nf3 {[%emt 0:00:02]} e6 {[%emt 0:00:06]} 3. Bf4 {[%emt 0:00:04]} c5 {[%emt 0:00:03]} 4. e3 {[%emt 0:00:00]} d5 {[%emt 0:00:01]} 5. c3 {[%emt 0:00:07]} Bd6 {[%emt 0:00:02]} 6. Bg3 {[%emt 0:00:07]} O-O {[%emt 0:00:04]} 7. Nbd2 {[%emt 0:00:06]} Qc7 {[%emt 0:00:19]} 8. Bd3 {[%emt 0:00:59]} Nbd7 {[%emt 0:00:03]} 9. O-O {[%emt 0:00:46] D02: 1 d4 d5 2 Nf3 sidelines, including 2...Nf6 3 g3 and 2...Nf6 3 Bf4.} Bxg3 {[%emt 0:00:05]} 10. hxg3 {[%emt 0:00:00]} b6 {[%emt 0:00:01]} 11. e4 {[%emt 0:00:25] The position is equal.} dxe4 {[%emt 0:00:03]} 12. Nxe4 {[%emt 0:00:01]} Bb7 {[%emt 0:00:01]} 13. Qe2 {[%emt 0:00:16]} cxd4 {[%emt 0:00:50]} 14. Nxd4 {[%emt 0:00:04]} Nxe4 {[%emt 0:00:06]} 15. Bxe4 {[%emt 0:00:00]} Bxe4 {[%emt 0:00:01]} 16. Qxe4 {[%emt 0:00:01] [#]} Nc5 $146 {[%emt 0:00:06]} ({Predecessor:} 16... Nf6 17. Qe2 Rfd8 18. Rad1 a5 19. Rd2 b5 20. Rfd1 h6 21. Nc2 Rxd2 22. Qxd2 Nd5 {½-½ Vijayalakshmi,S (2331)-Nandhidhaa,P (2339) IND-chT (Women) 2020 (6.2)}) 17. Qc6 {[%emt 0:00:50]} Rac8 {[%emt 0:00:13]} 18. Qxc7 {[%emt 0:00:02]} Rxc7 {[%emt 0:00:00]} 19. Rad1 {[%emt 0:00:21]} Na4 {[%emt 0:01:19]} 20. Rd2 {[%emt 0:00:05]} Rd8 {[%emt 0:00:16] Threatens to win with ...e5.} 21. f4 {[%emt 0:00:47]} g6 {[%emt 0:00:37]} 22. g4 {[%emt 0:00:13]} b5 {[%emt 0:00:24][%cal Ob5b4]} 23. Rff2 {[%emt 0:01:28]} b4 {[%emt 0:04:27]} 24. Nb5 {[%emt 0:01:15]} Rxd2 {[%emt 0:02:07]} 25. Rxd2 {[%emt 0:00:00]} bxc3 $11 {[%emt 0:01:21][%mdl 4096] Endgame KRN-KRN} 26. Rd8+ {[%emt 0:00:01]} Kg7 {[%emt 0:00:01]} 27. Nxc7 $2 {[%emt 0:00:00] Loses the game.} (27. bxc3 $1 $11 {and White stays safe.} Rc6 28. Rd7) 27... cxb2 $19 {[%emt 0:00:04]} 28. Rd1 {[%emt 0:02:25]} (28. Ne8+ Kf8 29. Nc7+ Ke7 30. Rd1) 28... Nc3 $1 {[%emt 0:00:06][%csl LRa2,LRd1]} 29. Re1 {[%emt 0:00:00] [#]} Ne2+ $1 {[%emt 0:00:13][%mdl 576] Deflection, Promotion} 30. Rxe2 {[%emt 0:01:12]} b1=Q+ {[%emt 0:00:02]} (30... b1=R+ $2 31. Kf2 $18) 31. Kh2 {[%emt 0:00:00]} Qc1 {[%emt 0:00:18][%csl LRc7,LRf4]} 32. Nxe6+ {[%emt 0:00:02]} fxe6 {[%emt 0:00:02] KQ-KR} 33. g3 {[%emt 0:00:00]} h6 {[%emt 0:00:21][%cal Bh7h6,Bh6g5][%mdl 32] And now ...Kf6 would win.} 34. Kg2 {[%emt 0:00:18]} Kf6 {[%emt 0:00:08]} 35. Kf2 {[%emt 0:00:09]} a5 {[%emt 0:00:29]} 36. Kg2 {[%emt 0:00:15]} a4 {[%emt 0:00:15]} 37. Kf2 {[%emt 0:00:02]} g5 {[%emt 0:00:09]} 38. fxg5+ {[%emt 0:00:17]} hxg5 {[%emt 0:00:09] Black mates.} 39. Kg2 {[%emt 0:00:03]} e5 {[%emt 0:00:07]} 40. Rf2+ {[%emt 0:00:20]} Ke6 {[%emt 0:00:03]} 41. Rf1 {[%emt 0:00:02]} Qc4 {[%emt 0:00:11]} 42. Rf3 {[%emt 0:00:29]} Qxa2+ {[%emt 0:00:09]} 43. Kh3 {[%emt 0:00:00]} Qb1 {[%emt 0:00:04][%cal Rb1h1]} 44. Kh2 {[%emt 0:00:13] [#]} a3 $1 {[%emt 0:00:14][%cal Ba4a3,Ba3a2][%mdl 32]} 45. Rf1 {[%emt 0:00:01]} (45. Rf5 a2) 45... a2 {[%emt 0:00:12] Weighted Error Value: White=1.13/Black=0.02 (flawless)} 0-1

[Event "ChessKid Cup Div-III 2023"]
[Site "Online"]
[Date "2023.05.22"]
[Round "1.1"]
[White "Bluebaum, Matthias"]
[Black "Antipov, Mikhail Al."]
[Result "0-1"]
[ECO "D85"]
[WhiteElo "2669"]
[BlackElo "2588"]
[Annotator "TA"]
[PlyCount "98"]
[EventDate "2023.05.21"]
[EventType "k.o."]
[EventCountry "NET"]
[SourceTitle "playchess.com"]
[Source "ChessBase"]
[SourceQuality "1"]
[TimeControl "900+3"]

{[%evp 15,96,-4,2,-22,-6,-9,-4,-64,0,0,0,0,52,46,44,53,32,41,33,21,20,53,42,38,43,34,41,-19,-10,-511,-102,-79,0,0,0,0,0,-11,-21,-420,-416,-420,-416,-607,-603,-565,-641,-608,-597,-1242,-1259,-1886,-1894,-29977,-29977,-29983,-29984,-29984,-29985,-29985,-29986,-29986,-29987,-29987,-29988,-29988,-29989,-29989,-29990,-29991,-29992,-29992,-29992,-29993,-29993,-29993,-29994,-29995,-29996,-29997,-29998,-29998,-29999]} 1. d4 {[%emt 0:00:04]} Nf6 {[%emt 0:00:06]} 2. c4 {[%emt 0:00:01]} g6 {[%emt 0:00:08]} 3. Nc3 {[%emt 0:00:01]} d5 {[%emt 0:00:01]} 4. cxd5 {[%emt 0:00:01]} Nxd5 {[%emt 0:00:01]} 5. e4 {[%emt 0:00:00]} Nxc3 {[%emt 0:00:00]} 6. bxc3 {[%emt 0:00:00]} Bg7 {[%emt 0:00:01]} 7. Nf3 {[%emt 0:00:01]} c5 {[%emt 0:00:01]} 8. Bb5+ {[%emt 0:00:00] 8.h3 is a critical line.} Nc6 {[%emt 0:00:01][%cal Rc5d4]} 9. d5 {[%emt 0:00:00][%mdl 64] Pin. D85: Exchange Grünfeld: Unusual White 7th moves and lines with 7 Nf3.} (9. dxc5 Bxc3+ 10. Bd2 Bxa1 11. Qxa1 f6 $17) 9... Qa5 {[%emt 0:00:05]} 10. Rb1 {[%emt 0:00:02]} a6 {[%emt 0:00:10]} 11. Ba4 {[%emt 0:00:04]} (11. Bxc6+ $11 bxc6 12. O-O (12. dxc6 Qxc3+ 13. Qd2 Qc4 $15)) 11... b5 {[%emt 0:00:12]} ({Black should try} 11... Bxc3+ $15 12. Kf1 b5 13. dxc6 bxa4) 12. dxc6 $11 {[%emt 0:00:05]} Bxc3+ {[%emt 0:00:02]} 13. Bd2 {[%emt 0:00:01]} Be6 {[%emt 0:00:03]} (13... Bxd2+ $11 14. Qxd2 (14. Nxd2 bxa4 15. O-O Be6 $11) 14... Qxa4) 14. Bxc3 $1 $14 {[%emt 0:00:12]} Qxc3+ {[%emt 0:00:03]} 15. Qd2 {[%emt 0:00:00]} Qxd2+ {[%emt 0:00:10]} 16. Kxd2 {[%emt 0:00:00]} bxa4 {[%emt 0:00:27]} 17. Rhc1 {[%emt 0:00:02]} O-O-O+ {[%emt 0:00:59]} 18. Ke3 {[%emt 0:00:06] [#]} Kc7 $146 {[%emt 0:00:00]} ({Predecessor:} 18... Bxa2 19. Rb7 c4 20. Ne5 Rd6 21. Rxe7 Re6 22. Ra7 Rxe5 23. Ra8+ Kc7 24. Rxh8 Kxc6 25. Rxh7 {1-0 Sarana,A (2649)-Ivic,V (2581) Titled Tuesday intern op 23rd Feb blitz 2021 (5)}) 19. Rb7+ {[%emt 0:00:27]} Kxc6 {[%emt 0:00:30]} 20. Rcb1 {[%emt 0:00:01][%csl Gb7][%cal Rb1b6]} Bb3 {[%emt 0:00:00]} (20... Bxa2 $2 21. R1b6#) 21. Rxe7 {[%emt 0:00:32]} ({White should play} 21. Ra7 $1 $14 Rhe8 22. Rxa6+ (22. axb3 Kb6 $17) 22... Kb5 23. Ra7) 21... Bxa2 $11 {[%emt 0:00:25]} 22. Ne5+ {[%emt 0:01:40]} (22. Rbb7 $1 $11) 22... Kd6 $17 {[%emt 0:00:02]} 23. Rbb7 {[%emt 0:00:00][%cal Of2f4]} Rhe8 {[%emt 0:04:20]} (23... f5 $17 {And now ...fxe4 would win.} 24. f4 fxe4) 24. Nxf7+ $11 {[%emt 0:00:45]} Bxf7 {[%emt 0:00:03]} 25. Rxf7 {[%emt 0:00:00][%mdl 4096] Endgame Threatening mate with Rb6+. KRR-KRR} c4 {[%emt 0:00:04]} 26. f3 {[%emt 0:02:03][%cal Ob7b4]} a3 {[%emt 0:00:39]} 27. Rb1 $2 {[%emt 0:03:41][%mdl 8192] [#] White is now going downhill.} (27. Rxh7 $11 {and White has nothing to worry.} Rc8 28. Ra7) 27... Rb8 $1 $19 {[%emt 0:02:34]} 28. Ra1 {[%emt 0:00:45]} Rb3+ {[%emt 0:02:15]} 29. Kd4 {[%emt 0:01:22] [#]} (29. Kf4 $142 c3 30. Rd1+ Kc6 31. Rf6+ Kc7 32. Rc1) 29... Rc8 $1 {[%emt 0:00:02][%csl Gc4][%cal Rb3d3]} ({Not} 29... c3 30. Rf6+ Ke7 31. Rc6 $17) 30. e5+ {[%emt 0:03:02]} Ke6 {[%emt 0:00:02]} 31. Rf6+ {[%emt 0:00:00]} Ke7 {[%emt 0:00:01]} 32. Ra2 {[%emt 0:01:11]} c3 {[%emt 0:00:49] White must now prevent ...Rb2.} 33. Rc2 {[%emt 0:00:01]} Rb4+ {[%emt 0:00:37]} 34. Kd3 {[%emt 0:00:19]} Ra4 {[%emt 0:00:01]} 35. Rb6 {[%emt 0:00:13]} a2 {[%emt 0:00:02]} 36. Rb7+ {[%emt 0:00:00]} Kf8 {[%emt 0:00:28]} 37. Rxa2 {[%emt 0:00:08]} Rxa2 {[%emt 0:00:01]} 38. Rb1 {[%emt 0:00:01]} Rd2+ {[%emt 0:00:06]} 39. Ke3 {[%emt 0:00:01]} c2 {[%emt 0:00:01]} 40. Rc1 {[%emt 0:00:01]} Rd1 {[%emt 0:00:01]} 41. Rxc2 {[%emt 0:00:00]} Rxc2 {[%emt 0:00:01]} 42. h4 {[%emt 0:00:00]} Rxg2 {[%emt 0:00:01]} 43. h5 {[%emt 0:00:05]} gxh5 {[%emt 0:00:03]} 44. Kf4 {[%emt 0:00:03]} h4 {[%emt 0:00:00]} 45. Kf5 {[%emt 0:00:01]} h3 {[%emt 0:00:00]} 46. f4 {[%emt 0:00:01]} h2 {[%emt 0:00:01]} 47. Ke6 {[%emt 0:00:01]} h1=Q {[%emt 0:00:01]} 48. f5 {[%emt 0:00:00]} Rf2 {[%emt 0:00:05][%cal Rh1c6]} 49. f6 {[%emt 0:00:04]} Qh3# {[%emt 0:00:00] Weighted Error Value: White=0.72/Black=0.06 (flawless)} 0-1